bitfinex/quotes_ETHUSD_20240816
["timestamp","ask_amount","ask_price","bid_price","bid_amount"]
[1723769331683,0.25415308,2581.3,2580.9,38.87451]
[1723769331928,0.25415308,2581.2,2581.0,3.87436]
[1723769332179,0.25415308,2581.1,2581.0,3.87436]
[1723769332589,0.25415308,2581.5,2581.0,3.87436]
[1723769332790,0.25415308,2581.4,2581.0,3.87436]
[1723769333135,0.25415308,2581.3,2581.0,3.87436]
[1723769333348,0.25415308,2581.2,2581.0,3.87436]
[1723769333500,0.25415308,2581.1,2581.0,3.87436]
[1723769333816,6.00323213,2581.6,2581.1,3.87429]
[1723769334019,0.25413324,2581.5,2581.1,3.87429]
[1723769334222,0.25413324,2581.4,2581.1,3.87429]
[1723769334425,7.59716128,2581.6,2581.1,3.87429]
[1723769334426,0.25413324,2581.3,2581.1,3.87429]
[1723769334720,7.59716128,2581.6,2581.1,3.87429]
[1723769334721,0.25413324,2581.2,2581.1,3.87429]
[1723769334920,0.25413324,2581.2,2580.9,45.21907]
[1723769335126,0.25413324,2581.2,2580.9,41.34456]
[1723769335285,0.25413781,2581.1,2581.0,3.87436]
[1723769335484,0.25414734,2581.1,2581.0,3.87436]
[1723769335688,0.25414734,2581.1,2581.0,5.22135185]
[1723769335887,0.25412697,2581.5,2581.1,3.87425]
[1723769336087,0.25412685,2581.4,2581.1,3.87425]
[1723769336321,0.25412068,2581.3,2581.1,3.87425]
[1723769336514,0.25412068,2581.2,2581.1,3.87425]
[1723769337429,0.25412849,2581.2,2581.1,3.87425]
[1723769337594,0.25412849,2581.2,2581.1,5.2211566]
[1723769337902,0.25412849,2581.2,2581.1,3.87425]
[1723769338692,0.25412849,2581.2,2581.1,7.24143345]
[1723769338891,0.25412849,2581.2,2581.1,3.87425]
[1723769339087,0.25412849,2581.2,2581.1,5.22114016]
[1723769339294,0.25412849,2581.2,2581.1,3.87425]
[1723769339629,0.254111,2581.2,2581.1,1.34688859]
[1723769339830,0.254111,2581.2,2580.8,4.68165059]
[1723769340123,6.505811,2581.1,2580.7,2.02055674]
[1723769340327,6.505811,2581.1,2580.5,0.80698059]
[1723769340328,0.254111,2581.0,2580.5,0.80698059]
[1723769340529,0.254111,2581.0,2580.4,0.80698059]
[1723769340530,3.87521,2580.5,2580.4,0.80698059]
[1723769340736,3.87539,2580.4,2580.0,3.17978059]
[1723769340894,3.87539,2580.4,2580.3,35.0]
[1723769341095,4.12969142,2580.4,2580.3,35.0]
[1723769341634,0.25430142,2580.4,2580.3,35.0]
[1723769343095,4.93013156,2580.4,2580.3,35.0]
[1723769343295,3.87565,2580.3,2579.7,0.80698059]
[1723769343528,0.25430142,2580.2,2579.7,2.02137835]
[1723769343710,0.25430142,2580.2,2579.8,38.36888842]
[1723769343906,3.87536,2580.4,2579.8,35.0]
[1723769343907,0.25431425,2580.1,2579.8,35.0]
[1723769344117,3.87536,2580.4,2579.8,35.0]
[1723769344312,0.25431484,2580.3,2579.8,35.0]
[1723769345095,0.25431484,2580.3,2579.8,38.87626]
[1723769345523,0.25431484,2580.3,2579.9,2.4975]
[1723769345727,3.87482,2580.8,2580.1,3.87571]
[1723769345928,0.25428896,2580.7,2580.1,3.87571]
[1723769346127,0.25428896,2580.6,2580.1,3.87571]
[1723769346331,3.875,2580.7,2580.1,3.87571]
[1723769346529,0.2542858,2580.6,2580.1,3.87571]
[1723769346732,4.29847574,2580.7,2580.1,3.87571]
[1723769347039,4.12935797,2580.6,2579.9,6.37348]
[1723769347199,0.70957134,2580.5,2579.9,6.37348]
[1723769347401,6.62623797,2580.4,2579.8,35.0]
[1723769347702,4.12989797,2580.3,2579.8,38.87626]
[1723769348008,0.25428797,2580.2,2579.9,3.8761]
[1723769348317,3.87532,2580.5,2579.9,3.87602]
[1723769348517,0.25431591,2580.4,2579.9,3.87602]
[1723769348705,4.12968591,2580.4,2579.9,3.87602]
[1723769348912,0.25431591,2580.3,2579.9,3.87602]
[1723769349446,0.25431591,2580.3,2580.1,3.87572]
[1723769349608,7.59892847,2581.2,2580.4,2.3326]
[1723769349815,0.25425967,2581.1,2580.4,2.3326]
[1723769350343,4.10005,2581.2,2580.5,35.0]
[1723769350502,1.6341089,2581.1,2580.5,35.0]
[1723769350697,4.1287939,2581.0,2580.5,35.0]
[1723769350997,0.2542339,2580.9,2580.5,35.0]
[1723769352227,0.2542339,2580.9,2580.5,38.87521]
[1723769352416,0.2542339,2580.9,2580.6,3.87506]
[1723769352611,0.25422435,2580.8,2580.6,3.87506]
[1723769352837,0.22587,2581.2,2580.7,3.87489]
[1723769353063,0.2542113,2581.1,2580.8,38.87476]
[1723769353337,0.2542113,2581.1,2580.8,35.0]
[1723769353705,0.2542113,2581.0,2580.8,35.0]
[1723769353905,11.31403,2581.3,2580.8,35.0]
[1723769353906,8.958794,2581.3,2580.8,35.0]
[1723769354105,3.87461,2580.9,2580.8,35.0]
[1723769354333,6.20479,2581.0,2580.8,35.0]
[1723769354511,0.25421577,2580.9,2580.8,35.0]
[1723769355316,3.87425,2581.2,2580.8,35.0]
[1723769355505,0.25419773,2581.1,2580.8,35.0]
[1723769355707,7.44,2581.3,2580.9,2.4401]
[1723769355979,0.25417099,2581.2,2580.9,2.4401]
[1723769356442,23.49364,2581.6,2581.0,3.87446]
[1723769356665,23.49364,2581.6,2581.1,3.87428]
[1723769356666,0.25414462,2581.5,2581.1,3.87428]
[1723769357123,0.25414462,2581.5,2581.2,3.87402]
[1723769357311,0.25414462,2581.5,2581.3,3.87398]
[1723769357504,7.44,2581.6,2581.3,6.31408]
[1723769357819,7.44,2581.6,2581.3,2.4401]
[1723769358022,7.44,2581.6,2581.4,35.0]
[1723769358023,0.25410759,2581.5,2581.4,35.0]
[1723769358228,6.56363597,2581.5,2581.4,35.0]
[1723769358425,0.25412597,2581.5,2581.0,3.87445]
[1723769358627,0.25414725,2581.4,2581.1,3.87431]
[1723769358924,11.31366,2581.6,2581.2,37.4016]
[1723769359246,0.25411532,2581.5,2581.2,35.0]
[1723769360089,7.44,2581.6,2581.2,35.0]
[1723769360286,11.31359,2581.6,2581.2,35.0]
[1723769360485,7.44,2581.6,2581.2,35.0]
[1723769360854,7.44,2581.6,2581.4,2.4453]
[1723769361589,7.44,2581.6,2581.5,35.0]
[1723769362454,3.87317,2581.9,2581.5,35.0]
[1723769362663,4.12739703,2581.8,2581.5,35.0]
[1723769362865,0.25409703,2581.7,2581.5,35.0]
[1723769363695,4.12755703,2581.7,2581.4,2.4453]
[1723769363873,3.87346,2581.7,2581.1,10.19375]
[1723769364187,3.87346,2581.7,2581.2,38.87415]
[1723769366793,7.74696,2581.7,2581.2,38.87415]
[1723769366998,0.25412005,2581.6,2580.8,2.2558]
[1723769367203,3.87444,2581.1,2580.5,6.15702]
[1723769367627,3.87444,2581.1,2580.6,35.0]
[1723769367920,4.12871009,2581.0,2580.6,35.0]
[1723769368215,3.87444,2581.1,2580.6,35.0]
[1723769368216,3.87466,2580.9,2580.6,35.0]
[1723769368396,7.74881,2581.1,2580.6,35.0]
[1723769368597,3.8744,2581.1,2580.6,35.0]
[1723769368815,3.87463,2580.9,2580.3,2.467]
[1723769369394,0.25425567,2580.8,2580.4,35.0]
[1723769369568,3.87463,2580.9,2580.4,35.0]
[1723769369768,3.87499,2580.7,2580.4,35.0]
[1723769370010,6.23799,2581.2,2580.4,35.0]
[1723769370011,7.74943,2580.9,2580.4,35.0]
[1723769371031,0.25424958,2580.8,2580.4,35.0]
[1723769371200,3.87441,2581.1,2580.6,3.87495]
[1723769371399,3.8747,2580.9,2580.4,38.87528]
[1723769371583,3.87446,2581.0,2580.4,38.87528]
[1723769371787,0.25422511,2580.9,2580.4,38.87528]
[1723769372101,7.74902,2581.0,2580.4,38.87528]
[1723769372102,7.74901,2581.0,2580.4,38.87528]
[1723769372270,0.25422263,2580.9,2580.4,38.87528]
[1723769372468,3.87446,2581.0,2580.5,3.87512]
[1723769372717,3.87446,2581.0,2580.4,38.87527]
[1723769373007,0.25422465,2580.9,2580.4,38.87527]
[1723769373172,3.87446,2581.0,2580.4,38.87527]
[1723769373368,0.25421779,2580.9,2580.4,38.87527]
[1723769373979,0.25421779,2580.9,2580.4,42.75055]
[1723769374180,0.25421779,2580.9,2580.5,3.87508]
[1723769374390,7.74853,2581.2,2580.5,3.87508]
[1723769374391,3.87433,2581.1,2580.5,3.87508]
[1723769374609,0.25420576,2581.0,2580.5,3.87508]
[1723769374816,4.12866576,2581.0,2580.5,3.87508]
[1723769375017,3.87446,2581.0,2580.5,3.87508]
[1723769375381,0.254211,2580.9,2580.5,3.87508]
[1723769375582,3.87446,2581.0,2580.5,3.87508]
[1723769375826,0.25420869,2580.9,2580.4,7.75053]
[1723769376031,7.74854,2581.2,2580.6,2.4069]
[1723769376323,4.1285396,2581.1,2580.7,35.0]
[1723769376530,0.2541996,2581.0,2580.7,35.0]
[1723769377238,4.1286696,2581.0,2580.7,35.0]
[1723769377385,0.2541996,2580.9,2580.7,35.0]
[1723769378641,4.1289596,2580.8,2580.7,35.0]
[1723769378846,3.87494,2580.7,2580.2,3.87557]
[1723769379136,0.2541996,2580.6,2580.2,3.87557]
[1723769379317,0.2541996,2580.6,2580.3,35.0]
[1723769380335,3.87521,2580.5,2580.3,35.0]
[1723769380639,4.1295596,2580.4,2580.3,35.0]
[1723769381010,8.63004618,2580.4,2580.3,35.0]
[1723769381723,3.87562,2580.3,2579.7,3.87639]
[1723769381936,4.1298796,2580.2,2579.6,2.3146]
[1723769382093,3.87612,2579.9,2579.4,3.87686]
[1723769382310,3.87612,2579.9,2579.5,35.0]
[1723769383774,3.8759,2580.1,2579.6,2.3638]
[1723769383975,6.05753601,2581.4,2580.5,6.23901]
[1723769384286,3.87432,2581.1,2580.6,0.9878971]
[1723769384412,3.87448,2581.0,2580.6,35.9878971]
[1723769384616,8.523922,2581.0,2580.6,35.9878971]
[1723769384849,3.87448,2581.0,2580.6,35.9878971]
[1723769385047,3.87448,2581.0,2580.6,35.0]
[1723769385631,3.87421,2581.2,2580.6,35.0]
[1723769385831,0.25359084,2581.1,2580.6,35.0]
[1723769386371,7.74847,2581.2,2580.7,3.87491]
[1723769386668,0.25359191,2581.1,2580.6,3.87506]
[1723769387018,0.25359191,2581.1,2580.7,35.0]
[1723769387234,8.81705136,2581.2,2580.7,35.0]
[1723769387447,0.25358485,2581.1,2580.7,35.0]
[1723769387856,7.74846,2581.2,2580.7,35.0]
[1723769388432,3.87421,2581.2,2580.7,35.0]
[1723769389074,7.74846,2581.2,2580.7,35.0]
[1723769389732,7.74847,2581.2,2580.7,35.0]
[1723769389963,3.87432,2581.1,2580.7,35.0]
[1723769390477,4.12806118,2581.0,2580.7,35.0]
[1723769390689,9.7719,2581.4,2580.2,3.87557]
[1723769390690,3.87476,2580.8,2580.2,3.87557]
[1723769390984,0.25360118,2580.7,2580.2,3.87557]
[1723769391132,0.25360118,2580.7,2580.3,35.0]
[1723769391647,3.87476,2580.8,2580.4,0.6029291]
[1723769392489,7.44,2581.0,2580.4,4.4781691]
[1723769392784,0.25361047,2580.9,2580.4,4.4781691]
[1723769394599,5.25478068,2580.9,2580.4,4.4781691]
[1723769394878,0.25361047,2580.8,2580.4,4.4781691]
[1723769395839,4.12839047,2580.8,2580.4,0.6029291]
[1723769396078,0.25363299,2580.7,2580.4,0.6029291]
[1723769396595,0.25363299,2580.7,2580.2,3.87552]
[1723769396765,0.25363299,2580.7,2580.3,3.8755]
[1723769396965,4.65404931,2580.7,2580.2,3.87552]
[1723769397289,0.25363299,2580.6,2580.4,3.8753]
[1723769397497,13.809,2581.0,2580.4,3.8753]
[1723769397801,2.0069406,2580.9,2580.5,6.8035191]
[1723769398003,0.25361602,2580.8,2580.5,6.8035191]
[1723769398661,0.25361602,2580.8,2580.3,3.87539]
[1723769398862,5.84808508,2580.8,2580.2,6.20104]
[1723769399163,0.25361602,2580.7,2580.2,6.20104]
[1723769399400,0.25361602,2580.7,2580.3,3.87551]
[1723769399703,3.87469,2580.9,2580.3,3.87543]
[1723769399916,0.55942991,2580.7,2580.2,2.3254]
[1723769400095,0.55942991,2580.7,2580.2,6.20097]
[1723769400297,3.87469,2580.9,2580.2,6.20097]
[1723769400298,3.87478,2580.8,2580.2,6.20097]
[1723769400594,0.2536452,2580.7,2580.2,6.20097]
[1723769401165,0.2536452,2580.7,2579.9,0.80698059]
[1723769401166,3.87522,2580.5,2579.9,0.80698059]
[1723769401370,2.2532,2580.2,2579.5,2.3887]
[1723769401615,3.87608,2580.0,2579.3,6.26558]
[1723769401824,2.2532,2580.2,2579.1,0.80698059]
[1723769401825,7.75266,2579.8,2579.2,3.87716]
[1723769402002,0.25380576,2579.7,2579.1,3.87722]
[1723769402308,3.87628,2579.8,2579.2,3.87715]
[1723769402811,3.87628,2579.8,2579.3,3.877]
[1723769403129,0.2538087,2579.7,2579.1,7.75442]
[1723769403282,3.87628,2579.8,2579.2,3.87715]
[1723769403815,3.87628,2579.8,2579.3,3.87695]
[1723769404012,3.87605,2580.0,2579.4,3.87678]
[1723769404322,6.21645,2580.6,2579.9,3.87603]
[1723769404633,3.87546,2580.4,2579.8,3.87626]
[1723769405434,3.87515,2580.6,2580.1,3.87573]
[1723769405937,0.25367477,2580.5,2579.9,3.87599]
[1723769406158,4.12890477,2580.5,2580.0,3.87593]
[1723769406429,3.87523,2580.5,2580.0,3.87593]
[1723769406647,3.87578,2580.2,2579.6,3.87653]
[1723769406931,2.54578893,2580.4,2579.5,3.87664]
[1723769406932,4.12965439,2580.1,2579.5,3.87664]
[1723769407235,0.25375439,2580.0,2579.5,3.87664]
[1723769407437,3.87631,2579.8,2579.2,3.87716]
[1723769407930,3.87631,2579.8,2579.3,3.87697]
[1723769408113,7.75215,2580.0,2579.3,3.87697]
[1723769408314,4.1299413,2579.9,2579.3,3.87697]
[1723769408484,3.87615,2579.9,2579.3,3.87697]
[1723769408680,4.13009571,2579.8,2579.1,6.2236]
[1723769408916,3.87629,2579.8,2579.1,6.2236]
[1723769409085,3.87629,2579.8,2579.3,3.87701]
[1723769412134,3.87629,2579.8,2579.1,6.2236]
[1723769412135,3.87644,2579.7,2579.1,3.87718]
[1723769412340,4.57755075,2579.7,2579.1,3.87718]
[1723769413145,0.70111075,2579.7,2579.1,3.87718]
[1723769413352,4.57754075,2579.7,2579.1,3.87718]
[1723769414614,4.72203308,2579.6,2578.9,3.87752]
[1723769414819,3.87665,2579.6,2579.0,3.87745]
[1723769415826,3.87665,2579.6,2579.1,3.87731]
[1723769416028,3.87632,2579.8,2579.1,3.87731]
[1723769416291,5.239782,2579.8,2579.1,3.87731]
[1723769416426,3.87654,2579.7,2579.1,3.87719]
[1723769416830,5.239782,2579.8,2579.1,3.87719]
[1723769416831,3.8766,2579.6,2579.1,3.87719]
[1723769417037,0.38766,2579.5,2579.1,3.87719]
[1723769417618,0.38766,2579.5,2578.9,3.87749]
[1723769418332,0.38766,2579.5,2578.9,7.75502]
[1723769418517,4.26438,2579.5,2578.9,3.87749]
[1723769419856,0.38766,2579.5,2578.9,7.75502]
[1723769420096,3.8766,2579.6,2579.0,3.87746]
[1723769420264,9.7583,2579.9,2579.4,3.87679]
[1723769420573,9.7583,2579.9,2579.3,6.2737]
[1723769420574,13.63451,2579.9,2579.3,6.2737]
[1723769420724,3.87665,2579.6,2578.8,3.87762]
[1723769420929,0.387665,2579.5,2578.8,3.87762]
[1723769421128,5.627351,2579.8,2578.8,3.87762]
[1723769421361,5.627351,2579.8,2578.8,7.7553]
[1723769421362,3.87698,2579.4,2578.8,7.7553]
[1723769421725,3.87698,2579.4,2578.6,7.75599]
[1723769421726,3.87716,2579.3,2578.6,7.75599]
[1723769421925,0.387698,2579.3,2578.6,3.87795]
[1723769422129,3.87719,2579.2,2578.6,7.75593]
[1723769422363,3.87719,2579.2,2578.6,3.87795]
[1723769422686,0.387698,2579.3,2578.7,3.87784]
[1723769422976,3.87666,2579.6,2578.8,6.25497]
[1723769423140,0.25387665,2579.5,2579.0,3.87737]
[1723769423339,3.87666,2579.6,2579.0,3.87737]
[1723769423550,0.2538571,2579.5,2579.0,7.75475]
[1723769423787,4.40634841,2579.6,2579.0,3.87737]
[1723769424262,5.627351,2579.8,2579.2,3.87706]
[1723769424460,5.627351,2579.8,2579.2,7.75412]
[1723769424461,0.25384585,2579.7,2579.2,7.75412]
[1723769424625,0.25384585,2579.7,2579.2,3.87706]
[1723769425566,0.25384585,2579.7,2579.0,3.87739]
[1723769425753,7.44,2579.9,2579.0,3.87739]
[1723769425754,0.25384585,2579.6,2579.0,3.87739]
[1723769425958,3.87664,2579.6,2579.0,3.87739]
[1723769426253,4.13066301,2579.5,2578.9,3.87761]
[1723769426568,4.13066301,2579.5,2578.8,6.25496]
[1723769426569,3.87664,2579.6,2579.0,3.87746]
[1723769426744,4.13064846,2579.5,2578.9,3.87759]
[1723769427068,6.18639,2579.5,2578.9,3.87759]
[1723769427365,4.13080267,2579.4,2578.8,3.87776]
[1723769427533,0.25387267,2579.3,2578.8,3.87776]
[1723769427935,3.87705,2579.3,2578.8,3.87776]
[1723769428243,4.13107384,2579.2,2578.6,3.87794]
[1723769428568,3.87801,2578.7,2578.2,0.60770177]
[1723769428874,3.87825,2578.5,2578.0,3.87883]
[1723769429169,3.87875,2578.2,2577.6,3.8795]
[1723769429371,7.75756,2578.2,2577.6,3.8795]
[1723769429676,3.87875,2578.2,2577.6,3.8795]
[1723769429965,3.87875,2578.2,2577.6,7.75898]
[1723769430475,3.87846,2578.4,2577.6,7.75898]
[1723769430476,3.87846,2578.4,2577.7,3.87938]
[1723769430646,3.87846,2578.4,2577.8,3.87925]
[1723769431382,10.06592,2578.6,2578.0,3.87888]
[1723769431562,0.25402827,2578.5,2578.0,3.87888]
[1723769431738,4.13228827,2578.5,2578.0,3.87888]
[1723769431937,0.06892708,2578.4,2578.0,3.87888]
[1723769432767,3.87784,2578.8,2578.2,3.87866]
[1723769432978,3.72633869,2579.2,2578.4,3.87836]
[1723769432979,0.06807457,2578.7,2578.4,3.87836]
[1723769433177,6.26474,2579.5,2578.9,3.87762]
[1723769433362,0.32211447,2579.4,2578.9,3.87762]
[1723769433561,3.87728,2579.2,2578.5,3.87809]
[1723769433751,0.06591247,2579.1,2578.6,3.87804]
[1723769434077,0.06591247,2579.1,2578.5,7.75621]
[1723769434278,0.06591247,2579.1,2578.6,3.87794]
[1723769434769,3.94325247,2579.1,2578.4,3.87825]
[1723769434971,6.34406,2579.0,2578.3,10.03926]
[1723769435177,0.06599403,2578.9,2578.3,6.16088]
[1723769435346,0.06599403,2578.9,2578.5,3.87812]
[1723769435547,11.31734,2579.1,2578.3,6.16085]
[1723769435747,3.87766,2578.9,2578.3,3.87845]
[1723769435947,0.0659133,2578.8,2578.3,7.75688]
[1723769436271,0.0659133,2578.8,2578.5,3.87812]
[1723769436769,0.06588099,2578.7,2578.5,3.87812]
[1723769436967,7.44,2579.1,2578.5,3.87812]
[1723769437270,0.3198862,2579.0,2578.6,35.0]
[1723769437460,0.06596222,2579.0,2578.6,35.0]
[1723769439147,0.06596222,2579.0,2578.6,38.87804]
[1723769441590,0.06596222,2579.0,2578.6,35.0]
[1723769441788,1.20427544,2579.0,2578.6,35.0]
[1723769442004,0.06596222,2579.0,2578.6,38.87799]
[1723769442471,0.06596222,2579.0,2578.8,3.87764]
[1723769442663,0.06596222,2579.0,2578.9,7.75524]
[1723769442848,0.06596222,2579.0,2578.9,10.02664]
[1723769443053,0.06596222,2579.0,2578.9,45.02664]
[1723769443369,3.87672,2579.5,2578.9,38.87752]
[1723769443867,0.25387617,2579.4,2578.9,42.75505]
[1723769444068,0.25387617,2579.4,2578.9,42.75504]
[1723769444652,0.25387617,2579.4,2579.0,3.87746]
[1723769445083,1.356927,2579.5,2579.0,3.87746]
[1723769445250,0.25385889,2579.4,2579.0,3.87746]
[1723769445456,1.356927,2579.5,2579.1,3.87729]
[1723769445655,0.25385617,2579.4,2579.1,3.87729]
[1723769445883,13.56927,2579.6,2579.1,3.87729]
[1723769446084,0.2538533,2579.5,2579.1,3.87729]
[1723769447290,0.89216563,2579.5,2579.1,3.87729]
[1723769447588,0.2538533,2579.4,2579.1,3.87729]
[1723769447889,0.2538533,2579.4,2579.0,3.87745]
[1723769448113,0.2538533,2579.4,2579.1,35.0]
[1723769448465,0.95599686,2579.4,2579.1,35.0]
[1723769448661,0.70214356,2579.4,2579.1,35.0]
[1723769449467,0.06636266,2579.3,2579.1,35.0]
[1723769449962,6.12927,2579.6,2579.1,35.0]
[1723769450180,0.32027459,2579.5,2579.1,35.0]
[1723769450380,0.25384383,2579.4,2579.1,35.0]
[1723769450681,0.06639573,2579.3,2579.1,35.0]
[1723769451312,0.64495446,2579.5,2579.1,38.87731]
[1723769451511,0.06638777,2579.2,2579.1,35.0]
[1723769451678,0.64495446,2579.5,2579.1,35.0]
[1723769451877,0.06635834,2579.2,2579.1,38.87732]
[1723769452074,6.12927,2579.6,2579.1,38.87732]
[1723769452310,0.06635834,2579.2,2579.1,38.87732]
[1723769452516,6.12927,2579.6,2579.1,35.0]
[1723769452710,0.06637515,2579.2,2579.1,35.0]
[1723769452911,3.87687,2579.4,2579.1,35.0]
[1723769453076,0.06630302,2579.2,2579.1,35.0]
[1723769453410,0.3202622,2579.2,2579.1,35.0]
[1723769453622,0.25389153,2579.2,2578.7,3.87781]
[1723769453916,0.32029858,2579.2,2578.7,3.87781]
[1723769454081,3.94358705,2579.2,2578.8,35.0]
[1723769454690,0.2538997,2579.1,2578.8,35.0]
[1723769454896,0.06640705,2579.2,2578.8,38.87775]
[1723769455089,0.06636687,2579.0,2578.8,38.87775]
[1723769455385,0.06625333,2578.9,2578.8,38.87775]
[1723769455602,7.75383,2579.4,2578.8,38.87775]
[1723769455910,0.25388426,2579.3,2578.8,38.87775]
[1723769456113,0.32021649,2579.3,2578.8,38.87775]
[1723769456413,0.25388426,2579.2,2578.9,3.87747]
[1723769456715,0.06633223,2579.3,2578.9,3.87747]
[1723769456917,0.06629204,2579.1,2579.0,3.87747]
[1723769457218,6.12935,2579.6,2579.1,3.87728]
[1723769457423,0.25385067,2579.5,2579.1,3.87728]
[1723769457629,0.25385073,2579.4,2579.1,3.87728]
[1723769458044,7.44,2579.8,2579.3,3.87702]
[1723769458347,0.25383987,2579.7,2579.3,3.87702]
[1723769458906,2.85796086,2579.7,2579.4,35.0]
[1723769459109,0.25383987,2579.6,2579.4,35.0]
[1723769460487,0.25383987,2579.5,2579.4,35.0]
[1723769460893,0.25383012,2579.7,2579.4,35.0]
[1723769461212,0.25383012,2579.6,2579.4,35.0]
[1723769461409,0.25383012,2579.5,2579.4,35.0]
[1723769461910,4.13025012,2579.7,2579.4,35.0]
[1723769462227,2.98090163,2579.9,2579.4,35.0]
[1723769462228,0.25383012,2579.6,2579.4,35.0]
[1723769462541,0.25383012,2579.5,2579.4,35.0]
[1723769462739,0.25383012,2579.7,2579.4,35.0]
[1723769462900,0.25383012,2579.6,2579.4,35.0]
[1723769463085,0.25383012,2579.5,2579.4,35.0]
[1723769463790,0.25383012,2579.8,2579.4,41.13617]
[1723769463990,2.437,2580.1,2579.4,41.13617]
[1723769463991,3.87581,2580.1,2579.6,3.87657]
[1723769464207,0.2538063,2580.0,2579.6,3.87657]
[1723769464418,0.2538063,2579.9,2579.6,3.87657]
[1723769464598,0.2538063,2579.8,2579.6,3.87657]
[1723769464799,3.87581,2580.1,2579.6,3.87657]
[1723769464800,0.32043598,2579.7,2579.6,3.87657]
[1723769465218,0.32039955,2579.7,2579.6,3.87657]
[1723769465418,0.06662968,2579.7,2579.6,3.87657]
[1723769465622,0.25377803,2579.7,2579.5,3.87664]
[1723769465820,3.72575841,2580.2,2579.5,3.87664]
[1723769466021,0.25378184,2580.1,2579.5,3.87664]
[1723769466202,0.25378184,2580.0,2579.6,3.87649]
[1723769466405,0.32047959,2579.9,2579.5,3.87664]
[1723769466590,0.25378184,2579.8,2579.4,35.0]
[1723769466790,0.32048613,2579.7,2579.4,38.87677]
[1723769466989,4.73520663,2580.0,2579.4,38.87677]
[1723769467190,0.3206701,2579.9,2579.4,38.87677]
[1723769467491,0.25378287,2579.8,2579.5,3.87671]
[1723769467694,0.25378287,2579.7,2579.5,7.75335]
[1723769467901,0.06685222,2579.7,2579.6,10.16194]
[1723769468127,0.0017154,2579.7,2579.6,15.9117291]
[1723769468426,11.1647634,2580.9,2580.0,2.4088]
[1723769468590,0.25366142,2580.8,2580.4,6.28416]
[1723769468794,0.25366142,2580.8,2580.0,0.52562902]
[1723769468795,6.50722169,2580.7,2580.1,3.87568]
[1723769469027,6.50722169,2580.7,2580.2,35.0]
[1723769469028,3.87524,2580.5,2580.2,35.0]
[1723769469232,0.2536585,2580.4,2580.2,35.0]
[1723769469386,0.31392141,2580.4,2580.2,35.0]
[1723769469587,0.2536585,2580.3,2580.2,35.0]
[1723769469825,0.06023586,2580.3,2580.2,35.0]
[1723769470325,6.19323,2580.7,2580.2,35.0]
[1723769470500,0.0601717,2580.3,2580.2,35.0]
[1723769471031,6.19323,2580.7,2580.2,35.0]
[1723769471230,6.19323,2580.7,2579.6,4.68197264]
[1723769471231,3.87581,2580.1,2579.5,3.87663]
[1723769471401,3.87581,2580.1,2579.3,6.37687]
[1723769471402,4.51725341,2580.0,2579.3,6.37687]
[1723769471604,0.31392161,2579.9,2579.4,35.0]
[1723769471931,2.3183,2579.7,2579.4,35.0]
[1723769472119,0.06014002,2579.9,2579.4,38.87675]
[1723769472290,0.06001407,2579.6,2579.4,35.0]
[1723769472490,0.619434,2579.9,2579.4,35.0]
[1723769472693,0.25380769,2579.8,2579.4,35.0]
[1723769472894,0.31381517,2579.8,2579.4,35.0]
[1723769473103,0.25380769,2579.7,2579.4,35.0]
[1723769473609,0.05992997,2579.6,2579.4,35.0]
[1723769474028,3.87628,2579.8,2579.4,35.0]
[1723769474334,0.05989166,2579.5,2579.4,35.0]
[1723769474628,0.05989864,2579.5,2579.4,35.0]
[1723769474814,3.8765,2579.7,2579.4,35.0]
[1723769475017,3.87635,2579.8,2579.4,35.0]
[1723769475018,0.05990563,2579.5,2579.4,35.0]
[1723769475195,0.25383935,2579.5,2578.7,6.19002]
[1723769475394,0.25383935,2579.5,2578.4,1.33107166]
[1723769475395,2.3785,2579.3,2578.4,4.3342958]
[1723769475597,3.87755,2579.0,2578.5,35.0]
[1723769475808,0.31341608,2578.9,2578.5,35.0]
[1723769475991,0.05957673,2578.9,2578.5,35.0]
[1723769476216,0.05957673,2578.9,2578.5,38.87809]
[1723769476534,0.05957673,2578.9,2578.6,0.52562902]
[1723769476701,3.87748,2579.0,2578.4,2.3122]
[1723769477033,0.3133045,2578.9,2578.4,2.3122]
[1723769477205,0.05935792,2578.9,2578.5,35.0]
[1723769477934,0.05935792,2578.9,2578.7,3.87782]
[1723769478096,3.87751,2579.0,2578.4,6.19049]
[1723769478428,0.31346564,2578.9,2578.4,6.19049]
[1723769478629,0.05950828,2578.9,2578.5,35.0]
[1723769478928,0.05950828,2578.9,2578.6,3.87797]
[1723769479096,11.31724,2579.2,2578.6,3.87797]
[1723769479299,0.05948319,2578.8,2578.6,3.87797]
[1723769479500,14.60720663,2579.2,2578.7,35.0]
[1723769479501,11.31724,2579.2,2578.7,35.0]
[1723769479809,0.25392743,2579.1,2578.7,35.0]
[1723769480396,7.44,2579.2,2578.8,10.21733]
[1723769480599,7.44,2579.2,2578.8,6.33966]
[1723769481107,7.44,2579.2,2578.8,2.462]
[1723769481427,27.52388,2579.4,2578.8,2.462]
[1723769481628,0.25391336,2579.3,2578.8,2.462]
[1723769482206,0.25391336,2579.3,2578.8,6.33973]
[1723769482814,19.77,2579.4,2578.8,6.33973]
[1723769482815,19.77,2579.4,2579.1,3.87722]
[1723769483104,3.87659,2579.6,2578.8,6.33969]
[1723769483298,3.87659,2579.6,2578.8,3.87769]
[1723769483299,3.87702,2579.3,2578.8,3.87769]
[1723769483628,0.25389594,2579.2,2578.8,3.87769]
[1723769483936,3.87702,2579.3,2578.8,3.87769]
[1723769484711,3.8771,2579.3,2578.7,35.0]
[1723769485033,3.8774,2579.1,2578.7,35.0]
[1723769485400,3.87709,2579.3,2578.7,35.0]